fUST/lending_fUST_20250619
["ID","MTS","AMOUNT","RATE_DAILY","PERIOD"]
[366458052,1750263072164,-3000.0,0.0002416,2]
[366458053,1750263072174,-161.0,0.00024164,7]
[366458054,1750263072184,-153.30466697,0.00024168,2]
[366458055,1750263072194,-3000.0,0.0002417,2]
[366458056,1750263072204,-168.0,0.00024171,2]
[366458057,1750263072213,-947.14694789,0.00024176,10]
[366458058,1750263072224,-3000.0,0.0002418,2]
[366458059,1750263072234,-3000.0,0.0002419,2]
[366458060,1750263072243,-57882.68,0.000242,2]
[366458061,1750263072253,-764.22,0.000242,7]
[366458062,1750263072262,-3000.0,0.000242,2]
[366458063,1750263072272,-1000.0,0.000242,2]
[366458064,1750263072282,-785.551636,0.00024205,3]
[366458065,1750263072292,-3000.0,0.0002421,2]
[366458066,1750263072302,-600.0,0.00024214,2]
[366458067,1750263072312,-3000.0,0.0002422,2]
[366458068,1750263072325,-3000.0,0.0002423,2]
[366458069,1750263072335,-3000.0,0.0002424,2]
[366458070,1750263072345,-365.5483814,0.00024247,2]
[366458071,1750263072355,-365.5483814,0.00024247,2]
[366458072,1750263072366,-365.5483814,0.00024247,2]
[366458073,1750263072376,-3000.0,0.0002425,2]
[366458074,1750263072390,-3000.0,0.0002426,2]
[366458075,1750263072412,-3000.0,0.0002427,2]
[366458076,1750263072431,-151.0,0.00024279,7]
[366458077,1750263072451,-3000.0,0.0002428,2]
[366458078,1750263072472,-3000.0,0.0002429,2]
[366458079,1750263072491,-3000.0,0.000243,2]
[366458080,1750263072507,-3000.0,0.0002431,2]
[366458081,1750263072523,-3000.0,0.0002432,2]
[366458082,1750263072538,-153.30466697,0.00024324,2]
[366458083,1750263072558,-3000.0,0.0002433,2]
[366458084,1750263072577,-3000.0,0.0002434,2]
[366458085,1750263072595,-947.14694789,0.00024348,11]
[366458086,1750263072610,-3000.0,0.0002435,2]
[366458087,1750263072628,-3000.0,0.0002436,2]
[366458088,1750263072641,-3000.0,0.00024364,2]
[366458089,1750263072658,-765.95410642,0.00024364,2]
[366458090,1750263072674,-1000.0,0.00024364,2]
[366458091,1750263072689,-3000.0,0.0002437,2]
[366458092,1750263072704,-3000.0,0.0002438,2]
[366458093,1750263072719,-460.0,0.00024383,6]
[366458094,1750263072735,-460.0,0.00024383,6]
[366458095,1750263072751,-460.0,0.00024383,6]
[366458096,1750263072766,-460.0,0.00024383,2]
[366458097,1750263072782,-460.0,0.00024383,6]
[366458098,1750263072797,-744.08,0.00024383,6]
[366458099,1750263072812,-460.0,0.00024383,6]
[366458100,1750263072827,-621.32,0.00024383,6]
[366458101,1750263072842,-527.28,0.00024383,6]
[366458102,1750263072857,-460.0,0.00024383,6]
[366458103,1750263072872,-735.71,0.00024383,6]
[366458104,1750263072887,-460.0,0.00024383,6]
[366458105,1750263072902,-1023.56,0.00024383,6]
[366458106,1750263072917,-487.84,0.00024383,6]
[366458107,1750263072931,-666.78,0.00024383,6]
[366458108,1750263072947,-460.0,0.00024383,6]
[366458109,1750263072961,-460.0,0.00024383,6]
[366458110,1750263072976,-791.85,0.00024383,6]
[366458111,1750263072990,-1170.02,0.00024383,6]
[366458112,1750263073005,-568.65,0.00024383,6]
[366458113,1750263073020,-460.0,0.00024383,6]
[366458114,1750263073036,-460.0,0.00024383,6]
[366458115,1750263073052,-460.0,0.00024383,6]
[366458116,1750263073068,-474.87,0.00024383,6]
[366458117,1750263073083,-518.56,0.00024383,6]
[366458118,1750263073097,-671.47,0.00024383,6]
[366458119,1750263073112,-4246.95,0.00024383,6]
[366458120,1750263073128,-460.0,0.00024383,6]
[366458121,1750263073143,-3897.04,0.00024383,6]
[366458122,1750263073158,-1762.73,0.00024383,6]
[366458123,1750263073177,-460.0,0.00024383,6]
[366458124,1750263073192,-741.78,0.00024383,6]
[366458125,1750263073207,-2527.95,0.00024383,6]
[366458126,1750263073223,-3589.72,0.00024383,6]
[366458127,1750263073239,-1023.06,0.00024383,6]
[366458128,1750263073255,-662.53,0.00024383,6]
[366458129,1750263073270,-460.0,0.00024383,6]
[366458130,1750263073286,-780.04,0.00024383,6]
[366458131,1750263073302,-618.72,0.00024383,6]
[366458132,1750263073319,-684.86,0.00024383,6]
[366458133,1750263073335,-4198.1,0.00024383,6]
[366458134,1750263073347,-460.0,0.00024383,6]
[366458135,1750263073358,-460.0,0.00024383,6]
[366458136,1750263073370,-1596.71,0.00024383,6]
[366458137,1750263073381,-546.05,0.00024383,6]
[366458138,1750263073528,-649.37,0.00024383,6]
[366458139,1750263073547,-477.36,0.00024383,6]
[366458140,1750263073558,-460.0,0.00024383,6]
[366458141,1750263073567,-460.0,0.00024383,6]
[366458142,1750263073577,-1896.77,0.00024383,6]
[366458143,1750263073586,-606.94,0.00024383,6]
[366458144,1750263073596,-975.69,0.00024383,6]
[366458145,1750263073606,-2289.57,0.00024383,6]
[366458146,1750263073617,-607.85,0.00024383,6]
[366458147,1750263073627,-1286.04,0.00024383,6]
[366458148,1750263073637,-460.0,0.00024383,6]
[366458149,1750263073647,-814.77,0.00024383,6]
[366458150,1750263073656,-1284.44,0.00024383,6]
[366458151,1750263073666,-460.0,0.00024383,6]
[366458152,1750263073677,-460.0,0.00024383,6]
[366458153,1750263073687,-460.0,0.00024383,6]
[366458154,1750263073697,-577.06,0.00024383,6]
[366458155,1750263073707,-761.19,0.00024383,6]
[366458156,1750263073717,-460.0,0.00024383,6]
[366458157,1750263073726,-460.0,0.00024383,6]
[366458158,1750263073735,-641.22,0.00024383,6]
[366458159,1750263073745,-1070.37,0.00024383,6]
[366458160,1750263073755,-460.0,0.00024383,6]
[366458161,1750263073765,-1741.04,0.00024383,6]
[366458162,1750263073775,-460.0,0.00024383,6]
[366458163,1750263073785,-9058.0,0.00024383,6]
[366458164,1750263073795,-3081.13,0.00024383,6]
[366458165,1750263073805,-514.89,0.00024383,6]
[366458166,1750263073815,-460.0,0.00024383,6]
[366458167,1750263073824,-718.17,0.00024383,6]
[366458168,1750263073834,-715.56,0.00024383,6]
[366458169,1750263073843,-462.03,0.00024383,6]
[366458170,1750263073853,-3693.66,0.00024383,6]
[366458171,1750263073862,-574.2153043,0.00024384,2]
[366458172,1750263073871,-317.8616018,0.00024384,2]
[366458173,1750263073881,-306.0,0.00024384,2]
[366458174,1750263073890,-177.0323298,0.00024384,2]
[366458175,1750263073900,-574.2153043,0.00024384,2]
[366458176,1750263073910,-515.3103067,0.00024384,2]
[366458177,1750263073919,-3000.0,0.0002439,2]
[366458178,1750263073929,-3000.0,0.000244,2]
[366458179,1750263073939,-3000.0,0.0002441,2]
[366458180,1750263073948,-3000.0,0.0002442,2]
[366458181,1750263073958,-500.0,0.00024425,2]
[366458182,1750263073968,-3000.0,0.0002443,2]
[366458183,1750263073978,-4285.85533,0.0002444,2]
[366458184,1750263073987,-1063.24869493,0.00024466,2]
[366458185,1750263073997,-394.84234685,0.00024466,2]
[366458186,1750263074007,-587.0,0.0002448,2]
[366458187,1750263074017,-153.30466697,0.0002448,2]
[366458188,1750263074027,-587.0,0.0002448,2]
[366458189,1750263074036,-160.0,0.000245,7]
[366458190,1750263074046,-151.0,0.00024515,7]
[366458191,1750263074055,-947.14694789,0.00024521,11]
[366458192,1750263074065,-800.0,0.0002458,2]
[366458193,1750263074075,-500.0,0.00024582,2]
[366458194,1750263074085,-5000.0,0.00024597,2]
[366458195,1750263074095,-51079.67,0.000246,7]
[366458196,1750263074105,-315.48910325,0.000246,7]
[366458197,1750263074114,-154.671531,0.000246,7]
[366458198,1750263074124,-151.0,0.000246,7]
[366458199,1750263074134,-224.0,0.00024627,2]
[366458200,1750263074144,-153.30466697,0.00024636,2]
[366458201,1750263074153,-160.0,0.00024656,2]
[366458202,1750263074163,-460.0,0.00024657,6]
[366458203,1750263074172,-460.0,0.00024657,6]
[366458204,1750263074181,-460.0,0.00024657,6]
[366458205,1750263074191,-300.0,0.00024657,4]
[366458206,1750263074200,-460.0,0.00024657,2]
[366458207,1750263074210,-460.0,0.00024657,6]
[366458208,1750263074220,-744.08,0.00024657,6]
[366458209,1750263074230,-263.28085363,0.00024657,4]
[366458210,1750263074240,-460.0,0.00024657,6]
[366458211,1750263074250,-621.32,0.00024657,6]
[366458212,1750263074260,-527.28,0.00024657,6]
[366458213,1750263074270,-460.0,0.00024657,6]
[366458214,1750263074280,-735.71,0.00024657,6]
[366458215,1750263074289,-460.0,0.00024657,6]
[366458216,1750263074300,-1023.56,0.00024657,6]
[366458217,1750263074310,-487.84,0.00024657,6]
[366458218,1750263074324,-666.78,0.00024657,6]
[366458219,1750263074334,-460.0,0.00024657,6]
[366458220,1750263074344,-460.0,0.00024657,6]
[366458221,1750263074354,-791.85,0.00024657,6]
[366458222,1750263074365,-1170.02,0.00024657,6]
[366458223,1750263074375,-568.65,0.00024657,6]
[366458224,1750263074384,-460.0,0.00024657,6]
[366458225,1750263074395,-460.0,0.00024657,6]
[366458226,1750263074405,-460.0,0.00024657,6]
[366458227,1750263074415,-474.87,0.00024657,6]
[366458228,1750263074426,-518.56,0.00024657,6]
[366458229,1750263074436,-671.47,0.00024657,6]
[366458230,1750263074447,-4246.95,0.00024657,6]
[366458231,1750263074457,-520.14368675,0.00024657,6]
[366458232,1750263074466,-3897.04,0.00024657,6]
[366458233,1750263074476,-1762.73,0.00024657,6]
[366458234,1750263074487,-460.0,0.00024657,6]
[366458235,1750263074498,-741.78,0.00024657,6]
[366458236,1750263074508,-2527.95,0.00024657,6]
[366458237,1750263074519,-3589.72,0.00024657,6]
[366458238,1750263074528,-1023.06,0.00024657,6]
[366458239,1750263074538,-662.53,0.00024657,6]
[366458240,1750263074548,-460.0,0.00024657,6]
[366458241,1750263074557,-780.04,0.00024657,6]
[366458242,1750263074567,-151.0,0.00024657,7]
[366458243,1750263074577,-618.72,0.00024657,6]
[366458244,1750263074587,-684.86,0.00024657,6]
[366458245,1750263074596,-4198.1,0.00024657,6]
[366458246,1750263074606,-460.0,0.00024657,6]
[366458247,1750263074616,-460.0,0.00024657,6]
[366458248,1750263074626,-1596.71,0.00024657,6]
[366458249,1750263074635,-546.05,0.00024657,6]
[366458250,1750263074645,-649.37,0.00024657,6]
[366458251,1750263074654,-477.36,0.00024657,6]
[366458252,1750263074664,-460.0,0.00024657,6]
[366458253,1750263074674,-570.16062234,0.00024657,6]
[366458254,1750263074684,-1896.77,0.00024657,6]
[366458255,1750263074693,-606.94,0.00024657,6]
[366458256,1750263074702,-975.69,0.00024657,6]
[366458257,1750263074712,-151.0,0.00024657,7]
[366458258,1750263074721,-2289.57,0.00024657,6]
[366458259,1750263074730,-607.85,0.00024657,6]
[366458260,1750263074740,-151.0,0.00024657,7]
[366458261,1750263074749,-1286.04,0.00024657,6]
[366458262,1750263074759,-460.0,0.00024657,6]
[366458263,1750263074768,-814.77,0.00024657,6]
[366458264,1750263074778,-1284.44,0.00024657,6]
[366458265,1750263074788,-460.0,0.00024657,6]
[366458266,1750263074798,-460.0,0.00024657,6]
[366458267,1750263074808,-151.0,0.00024657,7]
[366458268,1750263074817,-460.0,0.00024657,6]
[366458269,1750263074827,-577.06,0.00024657,6]
[366458270,1750263074837,-761.19,0.00024657,6]
[366458271,1750263074847,-460.0,0.00024657,6]
[366458272,1750263074857,-460.0,0.00024657,6]
[366458273,1750263074867,-641.22,0.00024657,6]
[366458274,1750263074876,-1070.37,0.00024657,6]
[366458275,1750263074887,-460.0,0.00024657,6]
[366458276,1750263074896,-1741.04,0.00024657,6]
[366458277,1750263074907,-460.0,0.00024657,6]
[366458278,1750263074916,-9058.0,0.00024657,6]
[366458279,1750263074927,-3081.13,0.00024657,6]
[366458280,1750263074938,-514.89,0.00024657,6]
[366458281,1750263074947,-460.0,0.00024657,6]
[366458282,1750263074957,-718.17,0.00024657,6]
[366458283,1750263074966,-715.56,0.00024657,6]
[366458284,1750263074976,-442.23296399,0.00024658,2]
[366458285,1750263074985,-438.4126145,0.00024658,2]
[366458286,1750263074994,-500.0,0.00024658,2]
[366458287,1750263075004,-500.0,0.00024685,2]
[366458288,1750263075014,-947.14694789,0.00024693,11]
[366458289,1750263075024,-877.69780996,0.00024696,2]
[366458290,1750263075033,-1384.57,0.000247,7]
[366458291,1750263075042,-1747.0,0.000247,3]
[366458292,1750263075052,-151.0,0.000247,3]
[366458293,1750263075062,-1747.0,0.000247,3]
[366458294,1750263075071,-151.0,0.000247,3]
[366458295,1750263075080,-1747.0,0.000247,3]
[366458296,1750263075090,-151.0,0.000247,3]
[366458297,1750263075099,-1747.0,0.000247,3]
[366458298,1750263075108,-151.0,0.000247,3]
[366458299,1750263075119,-1747.0,0.000247,3]
[366458300,1750263075128,-151.0,0.000247,3]
[366458301,1750263075138,-1747.0,0.000247,3]
[366458302,1750263075148,-151.0,0.000247,3]
[366458303,1750263075157,-1747.0,0.000247,3]
[366458304,1750263075166,-151.0,0.000247,3]
[366458305,1750263075175,-1747.0,0.000247,3]
[366458306,1750263075184,-1747.0,0.000247,3]
[366458307,1750263075194,-151.0,0.000247,3]
[366458308,1750263075204,-1747.0,0.000247,3]
[366458309,1750263075214,-151.0,0.000247,3]
[366458310,1750263075224,-1747.0,0.000247,3]
[366458311,1750263075233,-151.0,0.000247,3]
[366458312,1750263075243,-1747.0,0.000247,3]
[366458313,1750263075252,-151.0,0.000247,3]
[366458314,1750263075262,-1747.0,0.000247,3]
[366458315,1750263075271,-151.0,0.000247,3]
[366458316,1750263075281,-1747.0,0.000247,3]
[366458317,1750263075290,-151.0,0.000247,3]
[366458318,1750263075300,-1164.28628493,0.000247,3]
[366458319,1750263075310,-213.43818883,0.000247,3]
[366458320,1750263075323,-12542.39314967,0.000247,3]
[366458321,1750263075333,-1000.0,0.000247,2]
[366458322,1750263075342,-835.98428123,0.000247,3]
[366458323,1750263075351,-845.78193577,0.000247,3]
[366458324,1750263075362,-229.98435572,0.000247,3]
[366458325,1750263075372,-213.43818883,0.000247,3]
[366458326,1750263075382,-315.48910325,0.000247,3]
[366458327,1750263075392,-424.70586748,0.000247,3]
[366458328,1750263075402,-48171.5748017,0.00024708,7]
[366458329,1750263075412,-500.0,0.00024713,2]
[366458330,1750263075422,-500.0,0.0002474,2]
[366458331,1750263075432,-151.0,0.00024751,7]
[366458332,1750263075442,-500.0,0.00024768,2]
[366458333,1750263075451,-153.30466697,0.00024792,2]
[366458334,1750263075461,-200.0,0.00024794,120]
[366458335,1750263075471,-500.0,0.00024795,2]
[366458336,1750263075482,-151.0,0.000248,7]
[366458337,1750263075492,-151.0,0.000248,7]
[366458338,1750263075502,-500.0,0.00024822,2]
[366458339,1750263075512,-224.0,0.00024828,2]
[366458340,1750263075522,-200.0,0.00024833,120]
[366458341,1750263075531,-39450.25,0.0002484,12]
[366458342,1750263075540,-500.0,0.0002485,2]
[366458343,1750263075550,-5000.0,0.00024856,2]
[366458344,1750263075560,-5000.0,0.00024856,2]
[366458345,1750263075569,-5000.0,0.00024856,2]
[366458346,1750263075579,-5000.0,0.00024856,2]
[366458347,1750263075589,-5000.0,0.00024856,2]
[366458348,1750263075599,-947.14694789,0.00024866,12]
[366458349,1750263075608,-500.0,0.00024873,2]
[366458350,1750263075616,-500.0,0.00024877,2]
[366458351,1750263075626,-160.47005698,0.00024899,2]
[366458352,1750263075635,-200.0,0.00024899,2]
[366458353,1750263075645,-26741.49129269,0.000249,2]
[366458354,1750263075654,-42918.44830414,0.000249,2]
[366458355,1750263075664,-151.0,0.000249,7]
[366458356,1750263075779,-151.0,0.000249,7]
[366458357,1750263075791,-187.731642,0.000249,7]
[366458358,1750263075801,-151.0,0.000249,7]
[366458359,1750263075810,-153.646742,0.000249,7]
[366458360,1750263075819,-151.0,0.000249,7]
[366458361,1750263075830,-238.752,0.000249,7]
[366458362,1750263075839,-151.0,0.000249,7]
[366458363,1750263075849,-323501.90590205,0.000249,2]
[366458364,1750263076034,-460.0,0.00021917,6]
[366458365,1750263076044,-460.0,0.00021917,6]
[366458366,1750263076055,-111.38245891,0.00021917,6]
[366458367,1750263076066,-348.61754109,0.00021917,6]
[366458368,1750263076077,-357.27000869,0.000249,2]
[366458369,1750263076333,-460.0,0.00021917,6]
[366458370,1750263076343,-460.0,0.00021917,6]
[366458371,1750263076351,-460.0,0.00021917,6]
[366458372,1750263076360,-460.0,0.00021917,6]
[366458373,1750263076371,-460.38424079,0.00021917,2]
[366458374,1750263076380,-460.0,0.00021917,6]
[366458375,1750263076390,-306.03172676,0.00022191,6]
[366458376,1750263076400,-460.0,0.00022191,6]
[366458377,1750263076409,-460.0,0.00022191,6]
[366458378,1750263076419,-460.0,0.00022191,6]
[366458379,1750263076430,-460.0,0.00022191,6]
[366458380,1750263076439,-460.0,0.00022191,6]
[366458381,1750263076448,-460.0,0.00022191,6]
[366458382,1750263076457,-283.66,0.00022465,6]
[366458383,1750263076466,-460.0,0.00022465,6]
[366458384,1750263076476,-460.0,0.00022465,6]
[366458385,1750263076486,-340.0,0.00022465,6]
[366458386,1750263076496,-410.0,0.00022465,6]
[366458387,1750263076505,-119.36403245,0.00022465,6]
[366458388,1750263076730,-338.94080849,0.00021917,6]
[366458389,1750263086718,777.26,0.00018953,2]
[366458390,1750263168283,783.36,0.00018937,2]
[366458392,1750263249858,773.39,0.00019015,2]
[366458393,1750263331811,763.55,0.00018993,2]
[366458395,1750263401754,161.463613,0.00013699,2]
[366458397,1750263417949,753.83,0.00018919,2]
[366458398,1750263504951,744.24,0.0001892,2]
[366458401,1750263584174,28935.0,0.00023,30]
[366458402,1750263587288,734.77,0.00018923,2]
[366458403,1750263590324,500.0,0.00023,30]
[366458404,1750263656446,2846.64,0.000245,120]
[366458405,1750263668872,725.42,0.00018912,2]
[366458409,1750263748721,716.18,0.00018953,2]
[366458410,1750263830072,-173.567887,0.00019668,2]
[366458411,1750263830093,-593.60832699,0.0001998,2]
[366458412,1750263830115,-2116.79202649,0.0002,2]
[366458413,1750263830137,-300.0,0.00020637,2]
[366458414,1750263830157,-280.09952688,0.00020638,2]
[366458415,1750263830179,-500.0,0.00020638,2]
[366458416,1750263830200,-609.75,0.00020638,2]
[366458417,1750263830222,-500.0,0.00020638,2]
[366458418,1750263830243,-500.0,0.00020638,2]
[366458419,1750263830266,-500.0,0.00020638,2]
[366458420,1750263830288,-500.0,0.00020638,2]
[366458421,1750263830310,-500.0,0.00020638,2]
[366458422,1750263830333,-500.0,0.00020638,2]
[366458423,1750263830358,-500.0,0.00020638,2]
[366458424,1750263830379,-559.03873196,0.00020638,2]
[366458425,1750263830401,-500.0,0.00020638,2]
[366458426,1750263830423,-617.85287769,0.00020638,2]
[366458427,1750263830446,-249.29062299,0.00020638,2]
[366458428,1750263831380,707.07,0.00018945,2]
[366458429,1750263885198,1000.0,0.00024,120]
[366458430,1750263912953,700.1,0.00018733,2]
[366458433,1750263994374,691.19,0.00018667,2]
[366458434,1750264016131,-159.77149774,0.00019555,2]
[366458435,1750264074783,1000.0,0.0001911,2]
[366458436,1750264076626,680.36,0.00018664,2]
[366458439,1750264146124,-1324.50358552,0.00019552,2]
[366458441,1750264157876,654.85,0.00018663,2]
[366458443,1750264163126,-1309.69,0.00019552,2]
[366458444,1750264163147,-1964.54,0.00020441,2]
[366458445,1750264163168,-4203.0,0.000205,2]
[366458446,1750264163189,-382.47966379,0.00020575,2]
[366458447,1750264163211,-300.0,0.00020636,2]
[366458448,1750264163233,-1200.0,0.00020637,2]
[366458449,1750264163253,-300.0,0.00020637,2]
[366458450,1750264163274,-300.0,0.00020637,2]
[366458451,1750264163300,-162.18946696,0.00020638,2]
[366458452,1750264163324,-527.98344431,0.00020638,2]
[366458453,1750264163345,-500.0,0.00020638,2]
[366458454,1750264163369,-500.0,0.00020638,2]
[366458455,1750264163390,-279.66932477,0.00020638,2]
[366458456,1750264169081,-220.33067523,0.00020638,2]
[366458457,1750264169103,-500.0,0.00020638,2]
[366458458,1750264169124,-500.0,0.00020638,2]
[366458459,1750264169147,-500.0,0.00020638,2]
[366458460,1750264169168,-500.0,0.00020638,2]
[366458461,1750264169189,-500.0,0.00020638,2]
[366458462,1750264169210,-500.0,0.00020638,2]
[366458463,1750264169231,-10566.05122337,0.00020639,2]
[366458470,1750264232016,-300.0,0.00020638,2]
[366458471,1750264232026,-300.0,0.00020638,2]
[366458472,1750264232036,-1200.0,0.00020638,2]
[366458473,1750264232046,-10556.06601982,0.00020639,2]
[366458615,1750264237926,-1506.80201828,0.00020639,2]
[366458616,1750264237937,-2271.08073853,0.00020639,2]
[366458617,1750264237947,-299.44267522,0.00020675,2]
[366458618,1750264237959,-741.63852722,0.00020675,2]
[366458619,1750264237968,-182.036112,0.00020869,2]
[366458620,1750264237977,-447.55371604,0.00021328,2]
[366458622,1750264237987,-401.98365308,0.00021328,2]
[366458623,1750264237996,-267.94223222,0.00021328,2]
[366458624,1750264238006,-161.463613,0.00021404,2]
[366458625,1750264238015,-591.84660186,0.00021848,2]
[366458626,1750264238025,-987.95688997,0.000219,6]
[366458627,1750264238034,-219.63,0.00021907,3]
[366458628,1750264238043,-658.91,0.00021907,3]
[366458629,1750264238053,-500.38223619,0.00021916,2]
[366458630,1750264238062,-199.082,0.00021916,2]
[366458632,1750264238073,-500.0,0.00021916,2]
[366458634,1750264238083,-160.0,0.00021916,2]
[366458636,1750264238092,-506.16148271,0.00021917,6]
[366458638,1750264238101,-460.0,0.00021917,6]
[366458639,1750264238111,-456.23728154,0.00021917,6]
[366458640,1750264238120,-462.06058847,0.00021917,6]
[366458641,1750264238129,-198.65551253,0.00021917,6]
[366458642,1750264238139,-440.0,0.00021917,6]
[366458643,1750264238150,-460.0,0.00021917,6]
[366458644,1750264238160,-460.0,0.00021917,6]
[366458645,1750264238169,-460.0,0.00021917,6]
[366458646,1750264238178,-460.0,0.00021917,6]
[366458647,1750264238188,-460.0,0.00021917,6]
[366458648,1750264238198,-420.0,0.00021917,6]
[366458649,1750264238208,-380.0,0.00021917,6]
[366458650,1750264238217,-460.0,0.00021917,6]
[366458651,1750264238227,-460.0,0.00021917,6]
[366458652,1750264238236,-440.0,0.00021917,6]
[366458653,1750264238245,-430.0,0.00021917,6]
[366458654,1750264238255,-460.0,0.00021917,6]
[366458655,1750264238264,-460.0,0.00021917,6]
[366458656,1750264238273,-460.0,0.00021917,6]
[366458657,1750264238283,-440.0,0.00021917,6]
[366458658,1750264238292,-460.0,0.00021917,6]
[366458659,1750264238302,-460.0,0.00021917,6]
[366458660,1750264238311,-416.09843818,0.00021917,6]
[366458661,1750264238320,-440.0,0.00021917,6]
[366458662,1750264238330,-460.0,0.00021917,2]
[366458663,1750264238341,-460.0,0.00021917,6]
[366458664,1750264238350,-440.0,0.00021917,6]
[366458665,1750264238359,-460.0,0.00021917,6]
[366458666,1750264238370,-460.0,0.00021917,6]
[366458667,1750264238379,-440.0,0.00021917,6]
[366458668,1750264238389,-237.78849566,0.00021917,6]
[366458669,1750264238399,-440.0,0.00021917,6]
[366458670,1750264238408,-460.0,0.00021917,6]
[366458671,1750264238418,-455.94,0.00021917,6]
[366458672,1750264238427,-460.0,0.00021917,6]
[366458673,1750264238436,-460.0,0.00021917,6]
[366458674,1750264238445,-460.0,0.00021917,6]
[366458675,1750264238454,-326.06371609,0.00021917,6]
[366458676,1750264238463,-460.0,0.00021917,6]
[366458677,1750264238473,-460.0,0.00021917,6]
[366458678,1750264238482,-430.0,0.00021917,6]
[366458679,1750264238492,-460.0,0.00021917,6]
[366458680,1750264238502,-460.0,0.00021917,6]
[366458681,1750264238512,-460.0,0.00021917,6]
[366458682,1750264238522,-460.0,0.00021917,6]
[366458683,1750264238532,-195.83381847,0.00021917,6]
[366458684,1750264238541,-460.0,0.00021917,6]
[366458685,1750264238551,-460.0,0.00021917,6]
[366458686,1750264238561,-460.0,0.00021917,6]
[366458687,1750264238571,-430.0,0.00021917,6]
[366458688,1750264238582,-460.0,0.00021917,6]
[366458689,1750264238592,-460.0,0.00021917,6]
[366458690,1750264238602,-430.0,0.00021917,6]
[366458691,1750264238613,-476.38897664,0.00021917,6]
[366458692,1750264238623,-460.0,0.00021917,6]
[366458693,1750264238634,-460.0,0.00021917,6]
[366458694,1750264238643,-460.0,0.00021917,6]
[366458695,1750264238652,-460.0,0.00021917,6]
[366458696,1750264238662,-500.0,0.00021917,6]
[366458697,1750264238671,-460.0,0.00021917,6]
[366458698,1750264238682,-348.24985776,0.00021917,6]
[366458699,1750264238694,-460.0,0.00021917,6]
[366458700,1750264238703,-271.46239189,0.00021917,6]
[366458701,1750264238713,-460.0,0.00021917,6]
[366458702,1750264238722,-460.0,0.00021917,6]
[366458703,1750264238734,-460.0,0.00021917,6]
[366458704,1750264238744,-460.0,0.00021917,6]
[366458705,1750264238754,-460.0,0.00021917,6]
[366458706,1750264238765,-460.0,0.00021917,6]
[366458707,1750264238775,-460.0,0.00021917,6]
[366458708,1750264238784,-460.0,0.00021917,6]
[366458709,1750264238794,-460.0,0.00021917,6]
[366458710,1750264238803,-456.89853745,0.00021917,6]
[366458711,1750264238813,-420.09938566,0.00021917,6]
[366458712,1750264238823,-460.0,0.00021917,6]
[366458713,1750264238832,-475.96,0.00021917,6]
[366458714,1750264238843,-460.0,0.00021917,6]
[366458715,1750264238852,-460.0,0.00021917,6]
[366458716,1750264238862,-243.81856176,0.00021917,6]
[366458717,1750264238871,-420.0,0.00021917,6]